fUST/lending_fUST_20240826
["ID","MTS","AMOUNT","RATE_DAILY","PERIOD"]
[335943663,1724634656795,-1388.952772,0.00013699,2]
[335943664,1724634656810,-151.0,0.00013699,2]
[335943665,1724634656819,-1388.952772,0.00013699,2]
[335943666,1724634656828,-151.0,0.00013699,2]
[335943667,1724634656838,-1388.952772,0.00013699,2]
[335943668,1724634656847,-288.688865,0.00013699,2]
[335943669,1724634656857,-1388.952772,0.00013699,2]
[335943670,1724634656866,-345.272551,0.00013699,2]
[335943671,1724634656876,-1388.952772,0.00013699,2]
[335943672,1724634656888,-345.272551,0.00013699,2]
[335943673,1724634656897,-345.272551,0.00013699,2]
[335943674,1724634656906,-345.272551,0.00013699,2]
[335943675,1724634656915,-345.272551,0.00013699,2]
[335943676,1724634656924,-345.272551,0.00013699,2]
[335943677,1724634656933,-345.272551,0.00013699,2]
[335943678,1724634656942,-345.272551,0.00013699,2]
[335943679,1724634656952,-345.272551,0.00013699,2]
[335943680,1724634656961,-345.272551,0.00013699,2]
[335943681,1724634656971,-345.272551,0.00013699,2]
[335943682,1724634656980,-345.272551,0.00013699,2]
[335943683,1724634656989,-345.272551,0.00013699,2]
[335943684,1724634656998,-345.272551,0.00013699,2]
[335943685,1724634657007,-345.272551,0.00013699,2]
[335943686,1724634657016,-345.272551,0.00013699,2]
[335943687,1724634657026,-345.272551,0.00013699,2]
[335943688,1724634657036,-345.272551,0.00013699,2]
[335943689,1724634657045,-345.272551,0.00013699,2]
[335943690,1724634657056,-345.272547,0.00013699,2]
[335943691,1724634657065,-758.476788,0.00013699,2]
[335943692,1724634657075,-758.476788,0.00013699,2]
[335943693,1724634657084,-758.476788,0.00013699,2]
[335943694,1724634657095,-758.476788,0.00013699,2]
[335943695,1724634657105,-758.476788,0.00013699,2]
[335943696,1724634657115,-758.476788,0.00013699,2]
[335943697,1724634657124,-758.476788,0.00013699,2]
[335943698,1724634657133,-758.476788,0.00013699,2]
[335943699,1724634657143,-758.476788,0.00013699,2]
[335943700,1724634657152,-758.476788,0.00013699,2]
[335943701,1724634657161,-758.476788,0.00013699,2]
[335943702,1724634657171,-758.476788,0.00013699,2]
[335943703,1724634657180,-758.476788,0.00013699,2]
[335943704,1724634657189,-758.476788,0.00013699,2]
[335943705,1724634657199,-758.476788,0.00013699,2]
[335943706,1724634657208,-758.476788,0.00013699,2]
[335943707,1724634657219,-758.476788,0.00013699,2]
[335943708,1724634657228,-758.476788,0.00013699,2]
[335943709,1724634657238,-758.476788,0.00013699,2]
[335943710,1724634657248,-758.47678,0.00013699,2]
[335943711,1724634657259,-1066.791529,0.00013699,2]
[335943712,1724634657268,-1066.791529,0.00013699,2]
[335943713,1724634657277,-1066.791529,0.00013699,2]
[335943714,1724634657286,-1066.791529,0.00013699,2]
[335943715,1724634657295,-1066.791529,0.00013699,2]
[335943716,1724634657306,-1066.791529,0.00013699,2]
[335943717,1724634657315,-1066.791529,0.00013699,2]
[335943718,1724634657325,-1066.791529,0.00013699,2]
[335943719,1724634657335,-1066.791529,0.00013699,2]
[335943720,1724634657345,-1066.791529,0.00013699,2]
[335943721,1724634657354,-1066.791529,0.00013699,2]
[335943722,1724634657364,-1066.791529,0.00013699,2]
[335943723,1724634657373,-1066.791529,0.00013699,2]
[335943724,1724634657383,-1066.791529,0.00013699,2]
[335943725,1724634657392,-1066.791529,0.00013699,2]
[335943726,1724634657402,-1066.791529,0.00013699,2]
[335943727,1724634657411,-1066.791529,0.00013699,2]
[335943728,1724634657420,-1066.791529,0.00013699,2]
[335943729,1724634657430,-1066.791529,0.00013699,2]
[335943730,1724634657439,-1066.791531,0.00013699,2]
[335943731,1724634657448,-1296.054691,0.00013699,2]
[335943732,1724634657457,-1296.054691,0.00013699,2]
[335943733,1724634657466,-1296.054691,0.00013699,2]
[335943734,1724634657476,-1296.054691,0.00013699,2]
[335943735,1724634657485,-1296.054691,0.00013699,2]
[335943736,1724634657495,-1296.054691,0.00013699,2]
[335943737,1724634657504,-1296.054691,0.00013699,2]
[335943738,1724634657514,-194.9370649,0.00013699,2]
[335943739,1724634657524,-500.0,0.00013699,2]
[335943740,1724634657533,-500.0,0.00013699,2]
[335943741,1724634657543,-500.0,0.00013699,2]
[335943742,1724634657552,-500.0,0.00013699,2]
[335943743,1724634657562,-378.69660179,0.00013699,2]
[335943744,1724634657572,-500.0,0.00013699,2]
[335943745,1724634657582,-500.0,0.00013699,2]
[335943746,1724634657592,-500.0,0.00013699,2]
[335943747,1724634657604,-500.0,0.00013699,2]
[335943748,1724634657613,-222.15032375,0.00013699,2]
[335943749,1724634657622,-500.0,0.00013699,2]
[335943750,1724634657634,-500.0,0.00013699,2]
[335943751,1724634657643,-500.0,0.00013699,2]
[335943752,1724634657653,-500.0,0.00013699,2]
[335943753,1724634657664,-500.0,0.00013699,2]
[335943754,1724634657673,-646.01364348,0.00013699,2]
[335943755,1724634657683,-150.112233,0.000137,2]
[335943756,1724634657692,-150.112233,0.000137,2]
[335943757,1724634657701,-150.112233,0.000137,2]
[335943758,1724634657711,-150.112233,0.000137,2]
[335943759,1724634657721,-167.388293,0.000137,2]
[335943760,1724634657731,-150.112246,0.000137,2]
[335943761,1724634657740,-150.112233,0.000137,2]
[335943762,1724634657750,-150.112233,0.000137,2]
[335943763,1724634657759,-150.112233,0.000137,2]
[335943764,1724634657768,-150.112233,0.000137,2]
[335943765,1724634657778,-150.112233,0.000137,2]
[335943766,1724634657788,-150.112233,0.000137,2]
[335943767,1724634657801,-150.112238,0.000137,2]
[335943768,1724634657812,-603.0,0.000137,2]
[335943769,1724634657824,-409.311066,0.00013702,2]
[335943770,1724634657834,-409.311066,0.00013702,2]
[335943771,1724634657844,-409.311066,0.00013702,2]
[335943772,1724634657854,-409.311066,0.00013702,2]
[335943773,1724634657864,-409.311066,0.00013702,2]
[335943774,1724634657873,-818.3582803,0.00013702,2]
[335943775,1724634657884,-684.99,0.00013724,2]
[335943776,1724634657894,-500.0,0.00013724,2]
[335943777,1724634657904,-500.0,0.00013724,2]
[335943778,1724634657913,-500.0,0.00013724,2]
[335943779,1724634657923,-520.48,0.00013724,2]
[335943780,1724634657932,-500.0,0.00013724,2]
[335943781,1724634657942,-500.0,0.00013724,2]
[335943782,1724634657952,-500.0,0.00013724,2]
[335943783,1724634657963,-500.0,0.00013724,2]
[335943784,1724634657973,-500.0,0.00013724,2]
[335943785,1724634657983,-500.0,0.00013724,2]
[335943786,1724634657993,-500.0,0.00013724,2]
[335943787,1724634658002,-500.0,0.00013724,2]
[335943788,1724634658013,-500.0,0.00013724,2]
[335943789,1724634658023,-500.0,0.00013724,2]
[335943790,1724634658033,-500.0,0.00013724,2]
[335943791,1724634658043,-500.0,0.00013724,2]
[335943792,1724634658058,-1272.87,0.00013724,2]
[335943793,1724634658067,-500.0,0.00013724,2]
[335943794,1724634658076,-500.0,0.00013724,2]
[335943795,1724634658086,-723.98,0.00013725,2]
[335943796,1724634658096,-758.65,0.00013725,2]
[335943797,1724634658105,-16042.81,0.00013725,2]
[335943798,1724634658116,-4253.56,0.00013725,2]
[335943799,1724634658127,-158.510397,0.00013809,2]
[335943800,1724634658136,-172.875451,0.00013809,2]
[335943801,1724634658147,-191.187051,0.00013809,2]
[335943802,1724634658157,-232.380145,0.00013809,2]
[335943803,1724634658166,-284.539085,0.00013809,2]
[335943804,1724634658176,-728.44,0.0001381,2]
[335943805,1724634658186,-747.02,0.0001381,2]
[335943806,1724634658197,-820.51,0.0001381,2]
[335943807,1724634658207,-645.61,0.0001381,2]
[335943808,1724634658217,-876.77,0.0001381,2]
[335943809,1724634658227,-500.0,0.0001381,2]
[335943810,1724634658237,-781.88,0.0001381,2]
[335943811,1724634658247,-500.0,0.0001381,2]
[335943812,1724634658258,-500.0,0.0001381,2]
[335943813,1724634658268,-230.72758244,0.0001381,2]
[335943814,1724634658278,-702.57,0.0001381,2]
[335943815,1724634658287,-744.24,0.0001381,2]
[335943816,1724634658297,-500.0,0.0001381,2]
[335943817,1724634658314,-500.0,0.0001381,2]
[335943818,1724634658323,-500.0,0.0001381,2]
[335943819,1724634658332,-500.0,0.0001381,2]
[335943820,1724634658341,-500.0,0.0001381,2]
[335943821,1724634658350,-1268.44,0.00013811,2]
[335943822,1724634658358,-12655.1515119,0.00013811,2]
[335943823,1724634659063,-1296.054691,0.00013699,2]
[335943824,1724634659072,-1296.054691,0.00013699,2]
[335943825,1724634659081,-1296.054691,0.00013699,2]
[335943826,1724634659090,-1296.054691,0.00013699,2]
[335943827,1724634659099,-1296.054691,0.00013699,2]
[335943828,1724634659108,-1639.3484881,0.00013811,2]
[335943829,1724634659117,-777.27,0.00013811,2]
[335943830,1724634659127,-792.95,0.00013811,2]
[335943831,1724634659136,-173.499904,0.00013842,2]
[335943832,1724634659145,-284.539084,0.00013842,2]
[335943833,1724634659157,-185.626293,0.00013842,2]
[335943834,1724634659167,-330.095638,0.00013842,2]
[335943835,1724634659176,-783.072661,0.00013842,2]
[335943836,1724634659185,-177.303419,0.00013842,2]
[335943837,1724634659196,-442.429111,0.00013842,2]
[335943838,1724634659208,-182.812537,0.00013842,2]
[335943839,1724634659219,-834.88,0.00013871,2]
[335943840,1724634659230,-500.0,0.00013871,2]
[335943841,1724634659243,-1432.0,0.00013871,2]
[335943842,1724634659255,-1132.24,0.00013871,2]
[335943843,1724634659265,-707.18,0.00013871,2]
[335943844,1724634659274,-1221.8,0.00013871,2]
[335943845,1724634659283,-2431.93,0.00013871,2]
[335943846,1724634659293,-6354.63,0.00013871,2]
[335943847,1724634659304,-1132.78,0.00013876,2]
[335943848,1724634659313,-500.0,0.00013877,2]
[335943849,1724634659323,-915.01,0.00013877,2]
[335943850,1724634659332,-589.57,0.00013877,2]
[335943851,1724634659341,-768.03,0.00013877,2]
[335943852,1724634659351,-995.93,0.00013877,2]
[335943853,1724634659361,-1064.98,0.00013877,2]
[335943854,1724634659370,-1137.24,0.00013877,2]
[335943855,1724634659379,-500.0,0.00013877,2]
[335943856,1724634659389,-502.23,0.00013877,2]
[335943857,1724634659398,-500.0,0.00013877,2]
[335943858,1724634659407,-500.0,0.00013877,2]
[335943859,1724634659416,-500.0,0.00013877,2]
[335943860,1724634659426,-500.0,0.00013877,2]
[335943861,1724634659435,-1399.87,0.00013877,2]
[335943862,1724634659445,-500.0,0.00013877,2]
[335943863,1724634659454,-500.0,0.00013877,2]
[335943864,1724634659463,-588.18,0.00013877,2]
[335943865,1724634659472,-766.21,0.00013877,2]
[335943866,1724634659482,-500.0,0.00013877,2]
[335943867,1724634659494,-500.0,0.00013877,2]
[335943868,1724634659505,-500.0,0.00013877,2]
[335943869,1724634659516,-1249.14,0.00013877,2]
[335943870,1724634659527,-836.68,0.00013877,2]
[335943871,1724634659537,-500.0,0.00013877,2]
[335943872,1724634659551,-500.0,0.00013877,2]
[335943873,1724634659563,-500.0,0.00013877,2]
[335943874,1724634659572,-500.0,0.00013877,2]
[335943875,1724634659583,-598.31,0.00013877,2]
[335943876,1724634659593,-1029.66,0.00013877,2]
[335943877,1724634659602,-500.0,0.00013877,2]
[335943878,1724634659613,-682.82,0.00013877,2]
[335943879,1724634659623,-793.84,0.00013877,2]
[335943880,1724634659634,-516.67,0.00013877,2]
[335943881,1724634659643,-575.93,0.00013877,2]
[335943882,1724634659652,-509.25,0.00013877,2]
[335943883,1724634659664,-500.0,0.00013877,2]
[335943884,1724634659673,-624.43,0.00013877,2]
[335943885,1724634659683,-1178.17,0.00013877,2]
[335943886,1724634659692,-1231.14,0.00013877,2]
[335943887,1724634659702,-5963.29,0.00013877,2]
[335943888,1724634659711,-40548.41,0.00013877,2]
[335943889,1724634659721,-500.0,0.00013877,2]
[335943890,1724634659731,-577.81,0.00013877,2]
[335943891,1724634659740,-731.56,0.00013877,2]
[335943892,1724634659749,-500.0,0.00013877,2]
[335943893,1724634659758,-981.21,0.00013877,2]
[335943894,1724634659767,-991.38,0.00013877,2]
[335943895,1724634659777,-802.93,0.00013877,2]
[335943896,1724634659786,-500.0,0.00013877,2]
[335943897,1724634659797,-500.0,0.00013877,2]
[335943898,1724634659811,-2195.87,0.00013877,2]
[335943899,1724634659822,-860.31,0.00013877,2]
[335943900,1724634659833,-614.5,0.00013877,2]
[335943901,1724634659844,-689.42,0.00013877,2]
[335943902,1724634659853,-500.0,0.00013877,2]
[335943903,1724634659864,-968.75,0.00013877,2]
[335943904,1724634659873,-1422.28,0.00013877,2]
[335943905,1724634659883,-979.23,0.00013877,2]
[335943906,1724634659892,-1550.85,0.00013877,2]
[335943907,1724634659901,-636.56,0.00013877,2]
[335943908,1724634659910,-500.0,0.00013877,2]
[335943909,1724634659918,-500.36,0.00013877,2]
[335943910,1724634659927,-500.0,0.00013877,2]
[335943911,1724634659936,-823.89,0.00013877,2]
[335943912,1724634659946,-638.04,0.00013877,2]
[335943913,1724634659955,-977.66,0.00013877,2]
[335943914,1724634659964,-762.54,0.00013877,2]
[335943915,1724634659974,-500.0,0.00013877,2]
[335943916,1724634659983,-1770.84,0.00013877,2]
[335943917,1724634659992,-682.21,0.00013877,2]
[335943918,1724634660001,-799.13,0.00013877,2]
[335943919,1724634660010,-500.0,0.00013921,2]
[335943920,1724634660021,-1088.64,0.00013921,2]
[335943921,1724634660031,-225.42849295,0.00013921,2]
[335943922,1724634660040,-709.24,0.00013921,2]
[335943923,1724634660051,-1175.86,0.00013921,2]
[335943924,1724634660060,-936.55,0.00013921,2]
[335943925,1724634660070,-500.0,0.00013921,2]
[335943926,1724634660080,-500.0,0.00013921,2]
[335943927,1724634660091,-500.0,0.00013921,2]
[335943928,1724634660102,-500.0,0.00013921,2]
[335943929,1724634660111,-500.0,0.00013921,2]
[335943930,1724634660123,-500.0,0.00013921,2]
[335943931,1724634660132,-602.83,0.00013921,2]
[335943932,1724634660143,-920.72,0.00013921,2]
[335943933,1724634660153,-797.43,0.00013921,2]
[335943934,1724634660163,-500.0,0.00013921,2]
[335943935,1724634660173,-591.82,0.00013921,2]
[335943936,1724634660184,-865.71,0.00013921,2]
[335943937,1724634660194,-1308.21,0.00013921,2]
[335943938,1724634660205,-701.05,0.00013921,2]
[335943939,1724634660217,-1192.97,0.00013921,2]
[335943940,1724634660228,-848.04,0.00013921,2]
[335943941,1724634660239,-929.63,0.00013921,2]
[335943942,1724634660251,-510.24,0.00013921,2]
[335943943,1724634660260,-761.23,0.00013921,2]
[335943944,1724634660269,-585.25,0.00013921,2]
[335943945,1724634660278,-595.83,0.00013921,2]
[335943946,1724634660288,-743.7,0.00013921,2]
[335943947,1724634660298,-500.0,0.00013921,2]
[335943948,1724634660311,-1180.06,0.00013921,2]
[335943949,1724634660330,-184.345463,0.00013922,2]
[335943950,1724634660340,-500.0,0.00013933,2]
[335943951,1724634660349,-680.03,0.00013933,2]
[335943952,1724634660358,-958.32,0.00013933,2]
[335943953,1724634660367,-707.26,0.00013933,2]
[335943954,1724634660377,-764.2,0.00013933,2]
[335943955,1724634660388,-4150.88997001,0.00013933,2]
[335943956,1724634660752,-1003.43015469,0.00012888,2]
[335943957,1724634660762,-1296.054691,0.00013699,2]
[335943958,1724634660771,-1296.054691,0.00013699,2]
[335943959,1724634660781,-1200.0,0.00013699,2]
[335943960,1724634660790,-1296.054691,0.00013699,2]
[335943961,1724634660804,-1200.0,0.00013699,2]
[335943962,1724634660815,-1296.054691,0.00013699,2]
[335943963,1724634660825,-1200.0,0.00013699,2]
[335943964,1724634660836,-1296.054691,0.00013699,2]
[335943965,1724634660848,-1296.054691,0.00013699,2]
[335943966,1724634660860,-1296.054691,0.00013699,2]
[335943967,1724634660869,-1296.054689,0.00013699,2]
[335943968,1724634660879,-1184.32824056,0.00013933,2]
[335943969,1724634663184,3074.22,0.00024657,60]
[335943970,1724634663224,3074.22,0.00024657,60]
[335943971,1724634663264,3074.22,0.00024657,60]
[335943972,1724634663367,3074.22,0.00024657,60]
[335943973,1724634663407,3074.22,0.00024657,60]
[335943974,1724634663473,3074.22,0.00024657,60]
[335943975,1724634663512,3074.22,0.00024657,60]
[335943976,1724634663555,3074.22,0.00024657,60]
[335943977,1724634663604,3074.22,0.00024657,60]
[335943978,1724634663657,3074.22,0.00024657,60]
[335943979,1724634663712,3074.22,0.00024657,60]
[335943980,1724634663750,3074.22,0.00024657,60]
[335943981,1724634663872,3074.22,0.00024657,60]
[335943982,1724634663947,3074.22,0.00024657,60]
[335943983,1724634664046,3074.22,0.00024657,60]
[335943984,1724634664171,3074.22,0.00024657,60]
[335943985,1724634664207,3074.22,0.00024657,60]
[335943986,1724634664277,3074.22,0.00024657,60]
[335943987,1724634664503,3074.22,0.00024657,60]
[335943988,1724634664792,3074.22,0.00024657,60]
[335943989,1724634665057,3074.22,0.00024657,60]
[335943990,1724634665114,500.0,0.00024657,60]
[335943991,1724634665389,500.0,0.00024657,60]
[335943992,1724634665679,3074.22,0.00024657,60]
[335943993,1724634665708,500.0,0.00024657,60]
[335943994,1724634665976,3074.22,0.00024657,60]
[335943995,1724634666247,3074.26045673,0.00024657,60]
[335943996,1724634666277,500.0,0.00024657,60]
[335943997,1724634666543,500.0,0.00024657,60]
[335943998,1724634666622,525.08,0.00024657,60]
[335943999,1724634666823,500.0,0.00024657,60]
[335944000,1724634666910,500.0,0.00024657,60]
[335944001,1724634666941,525.08,0.00024657,60]
[335944002,1724634667319,500.0,0.00024657,60]
[335944003,1724634667349,500.0,0.00024657,60]
[335944004,1724634667518,525.08,0.00024657,60]
[335944005,1724634667580,500.0,0.00024657,60]
[335944006,1724634667610,500.0,0.00024657,60]
[335944007,1724634667644,525.08,0.00024657,60]
[335944008,1724634667675,4720.94,0.00024657,60]
[335944009,1724634667704,500.0,0.00024657,60]
[335944010,1724634667733,500.0,0.00024657,60]
[335944011,1724634667810,525.08,0.00024657,60]
[335944012,1724634667840,500.0,0.00024657,60]
[335944013,1724634667872,4720.94,0.00024657,60]
[335944014,1724634667902,500.0,0.00024657,60]
[335944015,1724634667968,500.0,0.00024657,60]
[335944016,1724634668088,525.08,0.00024657,60]
[335944017,1724634668120,648.32,0.00024657,60]
[335944018,1724634668150,500.0,0.00024657,60]
[335944019,1724634668182,4720.94,0.00024657,60]
[335944020,1724634668213,183.52005276,0.00024657,60]
[335944021,1724634668244,500.0,0.00024657,60]
[335944022,1724634668350,525.08,0.00024657,60]
[335944023,1724634668383,648.32,0.00024657,60]
[335944024,1724634668414,500.0,0.00024657,60]
[335944025,1724634668446,4720.94,0.00024657,60]
[335944026,1724634668498,500.0,0.00024657,60]
[335944027,1724634668632,525.08,0.00024657,60]
[335944028,1724634668678,648.32,0.00024657,60]
[335944029,1724634668709,4720.94,0.00024657,60]
[335944030,1724634668740,500.0,0.00024657,60]
[335944031,1724634668769,500.0,0.00024657,60]
[335944032,1724634668887,525.08,0.00024657,60]
[335944033,1724634669262,4720.94,0.00024657,60]
[335944034,1724634669314,648.32,0.00024657,60]
[335944035,1724634669359,500.0,0.00024657,60]
[335944036,1724634669404,525.08,0.00024657,60]
[335944037,1724634669447,500.0,0.00024657,60]
[335944038,1724634669490,4720.94,0.00024657,60]
[335944039,1724634669534,500.0,0.00024657,60]
[335944040,1724634669579,648.32,0.00024657,60]
[335944041,1724634669626,525.08,0.00024657,60]
[335944042,1724634669667,500.0,0.00024657,60]
[335944043,1724634669708,500.0,0.00024657,60]
[335944044,1724634669748,4720.94,0.00024657,60]
[335944045,1724634669793,648.32,0.00024657,60]
[335944046,1724634669910,500.0,0.00024657,60]
[335944047,1724634669950,525.08,0.00024657,60]
[335944048,1724634669992,500.0,0.00024657,60]
[335944049,1724634670034,4720.94,0.00024657,60]
[335944050,1724634670074,648.32,0.00024657,60]
[335944051,1724634670121,500.0,0.00024657,60]
[335944052,1724634670171,525.08,0.00024657,60]
[335944053,1724634670212,4720.94,0.00024657,60]
[335944054,1724634670251,500.0,0.00024657,60]
[335944055,1724634670282,648.32,0.00024657,60]
[335944056,1724634670317,525.08,0.00024657,60]
[335944057,1724634670347,500.0,0.00024657,60]
[335944058,1724634670380,632.52,0.00024657,60]
[335944059,1724634670413,4184.79407643,0.00024657,60]
[335944061,1724634754273,1113.4,0.00012781,7]
[335944062,1724634755119,500.0,0.00012781,7]
[335944063,1724634757394,500.0,0.00012167,7]
[335944064,1724634757866,5664.94,0.0001244,7]
[335944065,1724634758169,5664.94,0.00012628,7]
[335944066,1724634758418,5664.94,0.0001276,7]
[335944067,1724634758923,5664.94,0.0001276,7]
[335944068,1724634758985,5664.94,0.0001277,7]
[335944069,1724634759245,5664.94,0.0001277,7]
[335944070,1724634759518,5664.94,0.0001277,7]
[335944071,1724634759790,5664.94,0.0001277,7]
[335944072,1724634759995,500.0,0.00012781,7]
[335944073,1724634760052,4295.80716309,0.0001278,7]
[335944361,1724634877448,24900.0,0.00011442,2]
[335944577,1724634909444,678.86426744,0.00011442,2]
[335944658,1724634918156,13238.21263509,0.00011442,2]
[335944830,1724634958311,158.70110161,0.00011442,2]
[335944831,1724634965247,490.42496394,0.00011442,2]
[335945206,1724635205247,1010.23989812,0.00012112,2]
[335945207,1724635210838,183.567988,0.00011471,2]
[335945208,1724635211056,183.567988,0.0001167,2]
[335945209,1724635211265,183.567988,0.00011869,2]
[335945210,1724635211487,183.567988,0.00012068,2]
[335945211,1724635213711,5000.0,0.00012112,2]
[335945213,1724635230131,5000.0,0.00012112,2]
[335945215,1724635245451,5000.0,0.00012112,2]
[335945216,1724635260914,5000.0,0.00012112,2]
[335945218,1724635276788,1548.69676037,0.00012112,2]
[335945219,1724635293271,4718.29455301,0.00012112,2]
[335945221,1724635321684,4641.34700085,0.00012112,2]
[335945222,1724635373247,301.73253605,0.00011999,2]
[335945223,1724635375366,154.74467129,0.00011999,2]
[335945224,1724635381757,1775.4346969,0.00011516,2]
[335945225,1724635393885,495.46049752,0.00011999,2]
[335945227,1724635456142,562.59039376,0.00012112,2]
[335945231,1724635506692,2898.347076,0.00012,2]
[335945232,1724635511965,24900.0,0.00011435,2]
[335945233,1724635518178,8350.06256304,0.00011999,2]
[335945234,1724635560262,820.12008693,0.00012112,2]
[335945235,1724635574141,156.1,0.00020421,120]
[335945245,1724635738727,166.666667,0.00011478,2]
[335945246,1724635738946,166.666667,0.00011598,2]
[335945247,1724635739201,166.666667,0.00011717,2]
[335945248,1724635739422,166.666667,0.00011837,2]
[335945249,1724635739705,166.666667,0.00011957,2]
[335945250,1724635739929,166.666667,0.00012076,2]
[335945304,1724635832057,-418.89313081,0.0001212,2]
[335945851,1724635838758,-1259.41545977,0.0001212,2]
[335945852,1724635838770,-6304.39605393,0.0001212,2]
[335945853,1724635838780,-2144.32657805,0.00012163,2]
[335945854,1724635838789,-300.0,0.00012338,2]
[335945855,1724635838799,-300.0,0.00012338,2]
[335945856,1724635838808,-1153.2254419,0.00012339,2]
[335945857,1724635838818,-2129.25948805,0.00012356,2]
[335945858,1724635838828,-2167.54504644,0.00012356,2]
[335945859,1724635838837,-2129.25948805,0.00012356,2]
[335945860,1724635838848,-1614.5867324,0.00012356,2]
[335945861,1724635838857,-552.93,0.00012419,2]
[335945862,1724635838867,-500.0,0.00012419,2]
[335945863,1724635838877,-918.65,0.00012419,2]
[335945864,1724635838887,-908.88,0.00012419,2]
[335945865,1724635838896,-807.25,0.00012419,2]
[335945866,1724635838906,-234584.179029,0.0001242,2]
[335945867,1724635838915,-2237.57996992,0.00012428,2]
[335945868,1724635838924,-234584.179029,0.00012429,2]
[335945869,1724635838934,-573.15,0.00012429,2]
[335945870,1724635838944,-10720.87,0.00012429,2]
[335945871,1724635838953,-582.96,0.00012429,2]
[335945872,1724635838962,-594.71,0.00012429,2]
[335945873,1724635838974,-600.6,0.00012429,2]
[335945874,1724635838983,-3597.64,0.00012429,2]
[335945875,1724635838993,-12700.56,0.00012429,2]
[335945876,1724635839003,-3367.4,0.00012429,2]
[335945877,1724635839012,-943.99,0.00012429,2]
[335945878,1724635839022,-744.42,0.00012429,2]
[335945879,1724635839031,-1159.55,0.00012429,2]
[335945880,1724635839041,-608.28,0.00012429,2]
[335945881,1724635839050,-5066.95,0.00012429,2]
[335945882,1724635839059,-1941.44,0.00012429,2]
[335945883,1724635839068,-2273.00512421,0.00012429,2]
[335945884,1724635839098,-2799.45344855,0.00012429,2]
[335945922,1724635840295,-6130.44142724,0.00012429,2]
[335945924,1724635840304,-609.91,0.00012429,2]
[335945926,1724635840314,-540.86,0.00012429,2]
[335945928,1724635840324,-2827.99,0.00012429,2]
[335945930,1724635840334,-650.82,0.00012429,2]
[335945932,1724635840343,-986.55,0.00012429,2]
[335945934,1724635840353,-500.0,0.00012429,2]
[335945936,1724635840362,-500.0,0.00012429,2]
[335945938,1724635840372,-500.0,0.00012429,2]
[335945940,1724635840381,-951.6,0.00012429,2]
[335945942,1724635840391,-669.65,0.00012429,2]
[335945944,1724635840400,-428.90216662,0.00012429,2]
[335945946,1724635840409,-1181.59,0.00012439,2]
[335945948,1724635840419,-521.79,0.00012439,2]
[335945950,1724635840428,-812.87,0.00012439,2]
[335945952,1724635840440,-500.0,0.00012439,2]
[335945954,1724635840450,-500.0,0.00012439,2]
[335945956,1724635840460,-610.6,0.00012439,2]
[335945959,1724635840472,-500.0,0.00012439,2]
[335945961,1724635840483,-500.0,0.00012439,2]
[335945963,1724635840493,-500.0,0.00012439,2]
[335945965,1724635840503,-500.0,0.00012439,2]